fUST/lending_fUST_20260107
["ID","MTS","AMOUNT","RATE_DAILY","PERIOD"]
[400660855,1767773445632,-2000.0,0.00030926,7]
[400660856,1767773445642,-402.32,0.00030958,30]
[400660858,1767773445651,-500.0,0.00030958,7]
[400660860,1767773445666,-1000.0,0.00030999,30]
[400660862,1767773445676,-1000.0,0.00030999,30]
[400660863,1767773445686,-1000.0,0.00030999,30]
[400660864,1767773445696,-151.0,0.00031,10]
[400660865,1767773445705,-1209.44359795,0.00031,120]
[400660866,1767773445714,-190.2708929,0.00031,120]
[400660867,1767773445724,-176.11325056,0.00031,120]
[400660868,1767773445733,-191.51603111,0.00031,120]
[400660869,1767773445747,-163.98489072,0.00031,120]
[400660870,1767773445760,-186.0317041,0.00031,120]
[400660871,1767773445770,-174.41697135,0.00031,120]
[400660872,1767773445779,-164.04291735,0.00031,120]
[400660873,1767773445788,-206.91086702,0.00031,120]
[400660874,1767773445797,-194.89245098,0.00031,120]
[400660875,1767773445807,-1020.52354742,0.00031,7]
[400660876,1767773445815,-1041.66666667,0.00031,3]
[400660877,1767773445824,-1041.66666667,0.00031,7]
[400660878,1767773445834,-346.1,0.00031015,4]
[400660879,1767773445844,-2414.2803724,0.00031036,2]
[400660880,1767773445853,-2200.0,0.00031156,7]
[400660881,1767773445862,-500.0,0.00031185,7]
[400660882,1767773445872,-35976.17910447,0.00031275,2]
[400660883,1767773445881,-2200.0,0.00031287,7]
[400660884,1767773445890,-5000.0,0.00031288,2]
[400660885,1767773445900,-1908.17,0.000313,7]
[400660887,1767773445909,-1981.16465421,0.00031301,10]
[400660889,1767773445919,-4003.43723842,0.00031308,32]
[400660890,1767773445928,-170.0,0.00031315,45]
[400660891,1767773445940,-2414.2803724,0.00031356,2]
[400660892,1767773445949,-402.32,0.00031506,31]
[400660893,1767773445959,-2410.47,0.00031506,8]
[400660894,1767773445968,-315.02,0.000316,2]
[400660895,1767773445978,-2000.0,0.00031624,7]
[400660896,1767773445987,-2414.2803724,0.00031633,2]
[400660897,1767773445996,-500.0,0.00031651,7]
[400660898,1767773446005,-2200.0,0.00031679,7]
[400660899,1767773446015,-1975.99636094,0.00031749,5]
[400660900,1767773446024,-1772.08131892,0.00031749,5]
[400660901,1767773446034,-1214.63223769,0.00031749,5]
[400660902,1767773446043,-2080.50566905,0.00031749,5]
[400660903,1767773446052,-2414.2803724,0.00031806,2]
[400660904,1767773446062,-1039.50335235,0.00031822,5]
[400660905,1767773446071,-5889.0957183,0.00031823,2]
[400660906,1767773446081,-1209.44359795,0.000319,120]
[400660907,1767773446091,-190.2708929,0.000319,120]
[400660909,1767773446100,-191.51603111,0.000319,120]
[400660911,1767773446110,-174.41697135,0.000319,120]
[400660913,1767773446120,-186.0317041,0.000319,120]
[400660915,1767773446129,-164.04291735,0.000319,120]
[400660917,1767773446139,-206.91086702,0.000319,120]
[400660918,1767773446148,-191.37491647,0.00031928,22]
[400660920,1767773446158,-157.018213,0.00031977,10]
[400660922,1767773446167,-500.0,0.00031982,7]
[400660923,1767773446176,-1097.0,0.00032,30]
[400660924,1767773446186,-151.0,0.00032,120]
[400660925,1767773446195,-243.07,0.00032,7]
[400660926,1767773446204,-1041.66666667,0.00032,30]
[400660927,1767773446213,-1019.0,0.00032,7]
[400660928,1767773446222,-402.32,0.00032054,32]
[400660929,1767773446231,-1097.0,0.0003206,30]
[400660931,1767773446241,-2800.0,0.00032095,7]
[400660933,1767773446250,-258.12,0.000321,7]
[400660935,1767773446259,-876.56428572,0.00032146,2]
[400660937,1767773446269,-753.88844899,0.00032146,2]
[400660939,1767773446278,-3015.55379596,0.00032146,2]
[400660941,1767773446287,-921.81910896,0.00032146,2]
[400660943,1767773446297,-3687.27643585,0.00032146,2]
[400660945,1767773446307,-8296.37198066,0.00032146,2]
[400660947,1767773446316,-885.10000936,0.00032146,2]
[400660949,1767773446326,-3540.40003742,0.00032146,2]
[400660951,1767773446335,-590.33627533,0.00032146,2]
[400660953,1767773446344,-2361.3451013,0.00032146,2]
[400660955,1767773446353,-5313.02647793,0.00032146,2]
[400660957,1767773446363,-840.63909249,0.00032146,2]
[400660959,1767773446372,-2414.2803724,0.00032156,2]
[400660961,1767773446382,-588.31683182,0.0003221,2]
[400660962,1767773446391,-800.0,0.00032274,2]
[400660964,1767773446401,-2000.0,0.00032322,7]
[400660965,1767773446410,-4853.67042182,0.00032332,5]
[400660966,1767773446419,-3885.38501021,0.00032333,5]
[400660968,1767773446429,-3124.02,0.000324,14]
[400660969,1767773446439,-28848.38,0.000324,2]
[400660971,1767773446450,-1000.0,0.000324,120]
[400660973,1767773446459,-800.0,0.00032413,2]
[400660975,1767773446469,-180.23791405,0.00032437,9]
[400660976,1767773446478,-660.41379553,0.0003251,2]
[400660977,1767773446487,-2414.2803724,0.0003252,2]
[400660978,1767773446496,-304.02245372,0.0003254,2]
[400660979,1767773446506,-402.32,0.00032602,33]
[400660980,1767773446515,-346.1,0.00032625,5]
[400660981,1767773446524,-4153.85539601,0.00032659,5]
[400660982,1767773446533,-1908.17,0.000327,7]
[400660983,1767773446543,-800.0,0.00032716,2]
[400660984,1767773446552,-800.0,0.00032749,2]
[400660985,1767773446562,-4359.05630649,0.00032754,34]
[400660986,1767773446572,-2414.2803724,0.00032758,2]
[400660987,1767773446581,-162.44953957,0.000328,120]
[400660988,1767773446590,-2410.47,0.00032876,120]
[400660989,1767773446601,-34223.09,0.00032877,10]
[400660990,1767773446612,-28519.24,0.00032877,10]
[400660991,1767773446622,-23766.04,0.00032877,10]
[400660992,1767773446631,-1209.44359795,0.000329,120]
[400660993,1767773446640,-5000.0,0.00032913,2]
[400660994,1767773446650,-1041.66666667,0.00033,120]
[400660995,1767773446659,-1000.0,0.00033,120]
[400660996,1767773446668,-166.0,0.00033,14]
[400660998,1767773446678,-1019.0,0.00033,7]
[400660999,1767773446689,-316.0,0.00033,14]
[400661000,1767773446699,-2000.0,0.0003302,7]
[400661001,1767773446710,-151.0,0.00033038,31]
[400661002,1767773446720,-151.0,0.00033038,31]
[400661003,1767773446729,-151.0,0.00033038,31]
[400661004,1767773446738,-151.0,0.00033038,31]
[400661005,1767773446750,-151.0,0.00033038,31]
[400661006,1767773446759,-151.0,0.00033038,31]
[400661007,1767773446768,-151.0,0.00033038,31]
[400661008,1767773446778,-151.0,0.00033038,31]
[400661009,1767773446787,-151.0,0.00033038,31]
[400661010,1767773446798,-151.0,0.00033038,31]
[400661011,1767773446807,-151.0,0.00033038,31]
[400661012,1767773446817,-183.522133,0.00033038,31]
[400661013,1767773446828,-858.0,0.00033063,30]
[400661014,1767773446838,-848.5,0.00033063,30]
[400661015,1767773446847,-151.0,0.00033069,31]
[400661016,1767773446856,-151.0,0.00033069,31]
[400661017,1767773446866,-151.0,0.00033069,31]
[400661018,1767773446876,-151.0,0.00033069,31]
[400661019,1767773446885,-151.0,0.00033069,31]
[400661020,1767773446895,-151.0,0.00033069,31]
[400661021,1767773446906,-151.0,0.00033069,31]
[400661022,1767773446916,-151.0,0.00033069,31]
[400661023,1767773446925,-151.528573,0.00033069,31]
[400661024,1767773446934,-151.0,0.00033069,31]
[400661025,1767773446943,-151.0,0.00033069,31]
[400661026,1767773446953,-530.111159,0.00033071,31]
[400661027,1767773446962,-530.111159,0.00033071,31]
[400661028,1767773446971,-225.672265,0.00033071,31]
[400661029,1767773446981,-530.111159,0.00033071,31]
[400661030,1767773446990,-530.111159,0.00033071,31]
[400661031,1767773446999,-225.672265,0.00033071,31]
[400661032,1767773447008,-225.672265,0.00033071,31]
[400661033,1767773447017,-225.672265,0.00033071,31]
[400661034,1767773447027,-151.0,0.00033071,31]
[400661035,1767773447036,-184.812283,0.00033071,31]
[400661036,1767773447045,-184.812283,0.00033071,31]
[400661037,1767773447054,-184.812283,0.00033071,31]
[400661038,1767773447063,-184.812283,0.00033071,31]
[400661039,1767773447073,-1016.281206,0.00033071,31]
[400661040,1767773447084,-1016.281206,0.00033071,31]
[400661041,1767773447096,-1016.281206,0.00033071,31]
[400661042,1767773447106,-247.352857,0.00033071,31]
[400661043,1767773447115,-1016.281206,0.00033071,31]
[400661044,1767773447125,-247.352857,0.00033071,31]
[400661045,1767773447134,-247.352857,0.00033071,31]
[400661046,1767773447143,-247.352857,0.00033071,31]
[400661047,1767773447152,-205.742012,0.00033071,31]
[400661048,1767773447161,-205.742012,0.00033071,31]
[400661049,1767773447171,-205.742012,0.00033071,31]
[400661050,1767773447180,-205.742012,0.00033071,31]
[400661051,1767773447189,-1664.343388,0.00033071,31]
[400661052,1767773447198,-1664.343388,0.00033071,31]
[400661053,1767773447207,-634.815792,0.00033071,28]
[400661054,1767773447216,-634.815792,0.00033071,28]
[400661055,1767773447226,-634.815792,0.00033071,28]
[400661056,1767773447236,-215.570059,0.00033071,8]
[400661057,1767773447245,-634.815792,0.00033071,28]
[400661058,1767773447255,-206.665209,0.00033071,31]
[400661059,1767773447264,-215.570059,0.00033071,8]
[400661060,1767773447274,-206.665209,0.00033071,31]
[400661061,1767773447283,-215.570059,0.00033071,8]
[400661062,1767773447293,-206.665209,0.00033071,31]
[400661063,1767773447303,-206.665209,0.00033071,31]
[400661064,1767773447312,-215.570059,0.00033071,8]
[400661065,1767773447321,-151.0,0.00033071,31]
[400661066,1767773447330,-151.0,0.00033071,31]
[400661067,1767773447341,-440.287203,0.00033071,31]
[400661068,1767773447350,-440.287203,0.00033071,31]
[400661069,1767773447359,-440.287203,0.00033071,31]
[400661070,1767773447369,-440.287203,0.00033071,31]
[400661071,1767773447378,-10000.0,0.0003312,2]
[400661072,1767773447387,-2414.28037248,0.00033122,2]
[400661073,1767773447396,-151.0,0.00033141,31]
[400661074,1767773447405,-151.0,0.00033141,31]
[400661075,1767773447414,-187.815389,0.00033141,31]
[400661076,1767773447424,-187.815389,0.00033141,31]
[400661077,1767773447432,-187.815389,0.00033141,31]
[400661078,1767773447441,-187.815389,0.00033141,31]
[400661079,1767773447452,-151.0,0.00033141,31]
[400661080,1767773447461,-226.840481,0.00033141,31]
[400661081,1767773447470,-186.329815,0.00033141,31]
[400661082,1767773447557,-186.329815,0.00033141,31]
[400661083,1767773447578,-237.990209,0.00033141,31]
[400661084,1767773447587,-186.329815,0.00033141,31]
[400661085,1767773447596,-186.329815,0.00033141,31]
[400661086,1767773447605,-151.0,0.00033141,31]
[400661087,1767773447613,-206.229278,0.00033141,31]
[400661088,1767773447622,-151.0,0.00033141,2]
[400661089,1767773447631,-206.229278,0.00033141,31]
[400661090,1767773447640,-206.229278,0.00033141,31]
[400661091,1767773447649,-1441084.27498892,0.00033141,30]
[400661092,1767773447867,-206.229278,0.00028535,7]
[400661093,1767773447876,-75.95559145,0.00033141,30]
[400661094,1767773447887,-216274.47086972,0.00033141,30]
[400661095,1767773449349,-500.0,0.00012787,2]
[400661096,1767773449358,-108.11491716,0.00012787,2]
[400661097,1767773449382,-391.88508284,0.00012787,2]
[400661098,1767773449391,-500.0,0.00012787,2]
[400661099,1767773449400,-318.43428926,0.00012787,2]
[400661100,1767773449472,-181.56571074,0.00012787,2]
[400661101,1767773449484,-500.0,0.00012787,2]
[400661102,1767773449493,-500.0,0.00012787,2]
[400661103,1767773449504,-500.0,0.00012787,2]
[400661104,1767773449514,-500.0,0.00012787,2]
[400661105,1767773449524,-500.0,0.00012787,2]
[400661106,1767773449534,-500.0,0.00012787,2]
[400661107,1767773449543,-500.0,0.00012787,2]
[400661108,1767773449555,-500.0,0.00012787,2]
[400661109,1767773449567,-500.0,0.00012787,2]
[400661110,1767773449578,-377.635617,0.00012787,2]
[400661111,1767773449587,-505.43712682,0.00012787,2]
[400661112,1767773449597,-500.0,0.00012787,2]
[400661113,1767773449606,-162.1562343,0.00012787,2]
[400661114,1767773449617,-500.0,0.00012787,2]
[400661115,1767773449626,-500.0,0.00012787,2]
[400661116,1767773449636,-500.0,0.00012787,2]
[400661117,1767773449646,-500.0,0.00012787,2]
[400661118,1767773449656,-500.0,0.00012787,2]
[400661119,1767773449667,-500.0,0.00012787,2]
[400661120,1767773449678,-500.0,0.00012787,2]
[400661121,1767773449687,-500.0,0.00012787,2]
[400661122,1767773449698,-500.0,0.00012787,2]
[400661123,1767773449708,-500.0,0.00012787,2]
[400661124,1767773449718,-500.0,0.00012787,2]
[400661125,1767773449729,-500.0,0.00012787,2]
[400661126,1767773449738,-500.0,0.00012787,2]
[400661127,1767773449748,-500.0,0.00012787,2]
[400661128,1767773449764,-500.0,0.00012787,2]
[400661129,1767773449774,-500.0,0.00012787,2]
[400661130,1767773449784,-500.0,0.00012787,2]
[400661131,1767773449794,-500.0,0.00012787,2]
[400661132,1767773449803,-360.0,0.00012787,2]
[400661133,1767773449813,-500.0,0.00012787,2]
[400661134,1767773449822,-500.0,0.00012787,2]
[400661135,1767773449831,-500.0,0.00012787,2]
[400661136,1767773449840,-500.0,0.00012787,2]
[400661137,1767773449849,-500.0,0.00012787,2]
[400661138,1767773449859,-500.0,0.00012787,2]
[400661139,1767773449868,-500.0,0.00012787,2]
[400661140,1767773449879,-500.0,0.00012787,2]
[400661141,1767773449888,-500.0,0.00012787,2]
[400661142,1767773449898,-500.0,0.00012787,2]
[400661143,1767773449907,-500.0,0.00025069,2]
[400661144,1767773449916,-500.0,0.00025206,2]
[400661145,1767773449926,-500.0,0.00025343,2]
[400661146,1767773449935,-500.0,0.0002548,2]
[400661147,1767773449944,-606.259522,0.00028535,7]
[400661148,1767773449954,-821.37,0.00029073,3]
[400661149,1767773449963,-1041.66666667,0.00033,10]
[400661150,1767773449974,-206.229278,0.00033141,31]
[400661151,1767773449983,-606.259522,0.00033141,31]
[400661152,1767773449994,-20601.37607286,0.00033141,30]
[400661153,1767773450194,301.83694869,0.00030136,120]
[400661154,1767773452161,183.7004596,0.00030137,120]
[400661158,1767773990456,151.0,0.00030137,120]
[400661159,1767774033869,181.91,0.00012265,2]
[400661160,1767774035249,3451.0202138,0.0001192,2]
[400661170,1767774075500,500.0,0.0003013,120]
[400661171,1767774076749,500.0,0.0003013,120]
[400661172,1767774077985,500.0,0.0003013,120]
[400661173,1767774079435,500.0,0.0003013,120]
[400661174,1767774080676,500.0,0.0003013,120]
[400661175,1767774082326,500.0,0.0003013,120]
[400661176,1767774083794,500.0,0.0003013,120]
[400661177,1767774085356,500.0,0.0003013,120]
[400661178,1767774086572,500.0,0.0003013,120]
[400661179,1767774088059,500.0,0.0003013,120]
[400661180,1767774089307,230.95610465,0.0003013,120]
[400661184,1767774168673,1000.0,0.00030137,120]
[400661185,1767774251228,447.27122555,0.00030137,120]
[400661186,1767774273072,1183.04560614,0.00012265,2]
[400661187,1767774318996,168.79,8.276e-05,2]
[400661188,1767774319463,196.93,8.594e-05,2]
[400661189,1767774319913,225.06,8.913e-05,2]
[400661190,1767774320350,253.19,9.231e-05,2]
[400661191,1767774321023,281.32,9.549e-05,2]
[400661196,1767774391087,162.35,8.697e-05,2]
[400661197,1767774391516,185.54,9.019e-05,2]
[400661198,1767774392020,208.73,9.341e-05,2]
[400661199,1767774392597,231.93,9.663e-05,2]
[400661215,1767774460061,166.17,8.36e-05,2]
[400661216,1767774460476,193.87,8.681e-05,2]
[400661217,1767774460911,221.56,9.003e-05,2]
[400661218,1767774461369,249.26,9.325e-05,2]
[400661219,1767774461789,276.96,9.646e-05,2]
[400661226,1767774492844,1927.7636651,0.0001,2]
[400661230,1767774500874,289.07303095,0.0001,2]
[400661233,1767774505525,395.24785075,0.0002,120]
[400661235,1767774507790,279.22180484,0.00025,120]
[400661238,1767774510679,184.5161021,0.0002,120]
[400661239,1767774513150,327.8675129,0.0003,120]
[400661241,1767774515402,261.02619229,0.000295,120]
[400661246,1767774518012,5886.80330395,0.0001,2]
[400661247,1767774518098,4126.16318552,0.0001,2]
[400661248,1767774518333,531.98749874,0.0001,2]
[400661250,1767774520987,218.96627148,0.0003,120]
[400661253,1767774523335,164.44294239,0.0002876,120]
[400661255,1767774523423,265.94448563,0.0003,120]
[400661256,1767774531367,152.13,8.356e-05,2]
[400661257,1767774531843,182.56,8.69e-05,2]
[400661258,1767774532252,212.99,9.024e-05,2]
[400661259,1767774532667,243.41,9.358e-05,2]
[400661260,1767774533099,273.84,9.693e-05,2]
[400661261,1767774533532,304.26,0.00010027,2]
[400661276,1767774599983,191.39,7.609e-05,2]
[400661277,1767774600414,255.19,7.94e-05,2]
[400661278,1767774600814,318.99,8.27e-05,2]
[400661279,1767774601434,382.79,8.601e-05,2]
[400661280,1767774601712,446.59,8.932e-05,2]
[400661281,1767774602136,510.39,9.263e-05,2]
[400661282,1767774602574,574.18,9.594e-05,2]
[400661283,1767774603019,637.98,9.924e-05,2]
[400661322,1767774638716,-1657.40782459,0.00012407,2]
[400661323,1767774638726,-595.0,0.00012407,2]
[400661324,1767774638736,-307.611,0.00012532,2]
[400661325,1767774638746,-198.71113162,0.00012564,2]
[400661326,1767774638756,-300.0,0.00012684,2]
[400661327,1767774638766,-4951.45589416,0.00012684,2]
[400661328,1767774638778,-312.25752669,0.00012684,2]
[400661329,1767774638788,-500.0,0.00012684,2]
[400661330,1767774638798,-500.0,0.00012684,2]
[400661331,1767774638807,-500.0,0.00012684,2]
[400661332,1767774638817,-500.0,0.00012684,2]
[400661333,1767774638826,-500.0,0.00012684,2]
[400661334,1767774638836,-300.0,0.00012684,2]
[400661335,1767774638845,-500.0,0.00012684,2]
[400661336,1767774638855,-500.0,0.00012684,2]
[400661337,1767774638866,-500.0,0.00012684,2]
[400661338,1767774638876,-500.0,0.00012684,2]
[400661339,1767774638886,-500.0,0.00012684,2]
[400661340,1767774638895,-500.0,0.00012684,2]
[400661341,1767774638905,-500.0,0.00012684,2]
[400661342,1767774638915,-500.0,0.00012684,2]
[400661343,1767774638924,-500.0,0.00012684,2]
[400661344,1767774638934,-500.0,0.00012684,2]
[400661345,1767774638944,-500.0,0.00012684,2]
[400661346,1767774638953,-628.80895476,0.00012684,2]
[400661347,1767774638963,-500.0,0.00012684,2]
[400661348,1767774638973,-351.3506927,0.00012684,2]
[400661349,1767774638983,-500.0,0.00012684,2]
[400661350,1767774638993,-456.81074077,0.00012684,2]
[400661351,1767774639003,-487.7635617,0.00012684,2]
[400661352,1767774639013,-500.0,0.00012684,2]
[400661353,1767774639144,-650.54371269,0.00012684,2]
[400661354,1767774639157,-1000000.0,0.00012685,2]
[400661355,1767774639168,-50000.0,0.00012784,2]
[400661356,1767774639179,-300.0,0.00013042,2]
[400661357,1767774639195,-300.0,0.00013042,2]
[400661358,1767774639206,-300.0,0.00013042,2]
[400661359,1767774639216,-300.0,0.00013042,2]
[400661360,1767774639227,-300.0,0.00013042,2]
[400661361,1767774639238,-300.0,0.00013042,2]
[400661362,1767774639248,-300.0,0.00013042,2]
[400661363,1767774639259,-300.0,0.00013042,2]
[400661364,1767774639269,-300.0,0.00013042,2]
[400661365,1767774639279,-300.0,0.00013042,2]
[400661366,1767774639290,-300.0,0.00013042,2]
[400661367,1767774639300,-300.0,0.00013042,2]
[400661368,1767774639309,-300.0,0.00013042,2]
[400661369,1767774639319,-300.0,0.00013042,2]
[400661370,1767774639328,-300.0,0.00013042,2]
[400661372,1767774639337,-600.0,0.00013042,2]
[400661374,1767774639347,-331.75246461,0.00013273,2]
[400661376,1767774639356,-500.0,0.00013273,2]
[400661378,1767774639365,-500.0,0.00013273,2]
[400661380,1767774639375,-300.0,0.00013673,2]
[400661382,1767774639384,-1000.0,0.00013699,2]
[400661384,1767774639393,-500.0,0.00013699,2]
[400661386,1767774639402,-500.0,0.00013699,2]
[400661388,1767774639411,-500.0,0.00013699,2]
[400661390,1767774639421,-1000.0,0.00013821,2]
[400661392,1767774639430,-1000.0,0.00013821,2]
[400661394,1767774639440,-8929.0,0.0001386,2]
[400661396,1767774639449,-420.0,0.00013915,2]
[400661398,1767774639458,-290.43794004,0.00014175,2]
[400661400,1767774639467,-487.45344498,0.00014175,2]
[400661402,1767774639476,-600.0,0.00014221,2]
[400661404,1767774639485,-506.91111939,0.00014247,2]
[400661406,1767774639494,-1000.0,0.00014247,2]
[400661408,1767774639503,-1000.0,0.00014247,2]
[400661410,1767774639513,-720.0,0.00014347,2]
[400661412,1767774639522,-1500.0,0.00014368,2]
[400661414,1767774639532,-1500.0,0.00014368,2]
[400661415,1767774639541,-234.47913531,0.00014564,2]
[400661417,1767774639550,-900.0,0.00014768,2]
[400661419,1767774639560,-1500.0,0.00014795,2]
[400661421,1767774639569,-1500.0,0.00014795,2]
[400661423,1767774639577,-100000.0,0.00014882,2]
[400661425,1767774639587,-594.48760347,0.000149,2]
[400661427,1767774639596,-2000.0,0.00014916,2]
[400661429,1767774639605,-2000.0,0.00014916,2]
[400661431,1767774639614,-1000.0,0.00015,2]
[400661433,1767774639624,-1018.09986707,0.00015,2]
[400661435,1767774639633,-31548.41630509,0.00015,2]
[400661437,1767774639643,-150.8752938,0.00015,2]
[400661439,1767774639652,-502.26303891,0.00015,2]
[400661441,1767774639661,-434.94128664,0.00015,2]
[400661443,1767774639671,-800.0,0.00015068,2]
[400661445,1767774639680,-587.0,0.00015265,2]
[400661447,1767774639689,-1200.0,0.00015316,2]
[400661449,1767774639698,-2000.0,0.00015342,2]
[400661451,1767774639708,-2000.0,0.00015342,2]
[400661453,1767774639717,-713.54201059,0.00015422,3]
[400661455,1767774639727,-2500.0,0.00015464,2]
[400661457,1767774639737,-2500.0,0.00015464,2]
[400661459,1767774639746,-4951.45589412,0.00015687,2]
[400661461,1767774639756,-864.0,0.00015781,2]
[400661463,1767774639770,-1203.39831266,0.00015864,2]
[400661465,1767774639780,-2500.0,0.0001589,2]
[400661467,1767774639789,-2500.0,0.0001589,2]
[400661469,1767774639798,-8929.0,0.00015939,2]
[400661471,1767774639808,-215.68492171,0.00016,2]
[400661473,1767774639817,-3000.0,0.00016012,2]
[400661475,1767774639826,-3000.0,0.00016012,2]
[400661477,1767774639835,-1600.0,0.00016164,2]
[400661479,1767774639845,-3000.0,0.00016438,2]
[400661481,1767774639854,-3000.0,0.00016438,2]
[400661483,1767774639864,-2627.52709265,0.0001656,2]
[400661485,1767774639873,-3500.0,0.0001656,2]
[400661487,1767774639882,-270.24713901,0.00016564,2]
[400661489,1767774639891,-823.0,0.00016746,2]
[400661491,1767774639900,-53819.04156786,0.00016778,2]
[400661493,1767774639909,-960.85515417,0.00016868,5]
[400661495,1767774639918,-3500.0,0.00016986,2]
[400661497,1767774639926,-3500.0,0.00016986,2]
[400661499,1767774639936,-1000.0,0.00017,2]
[400661501,1767774639945,-4000.0,0.00017108,2]
[400661503,1767774639954,-2400.0,0.0001726,2]
[400661505,1767774639963,-1000.0,0.00017359,2]
[400661507,1767774639972,-253.11221216,0.0001737,2]
[400661509,1767774639982,-4000.0,0.00017534,2]
[400661511,1767774639991,-4000.0,0.00017534,2]
[400661513,1767774639999,-4500.0,0.00017656,2]
[400661515,1767774640009,-27429.36672841,0.00018,2]
[400661516,1767774640018,-4500.0,0.00018082,2]
[400661518,1767774640027,-4500.0,0.00018082,2]
[400661521,1767774640038,-13649.52,0.00018082,3]
[400661523,1767774640048,-5000.0,0.00018204,2]
[400661524,1767774640057,-1225.25328253,0.00018313,8]
[400661526,1767774640067,-802.30074464,0.00018356,2]
[400661528,1767774640076,-1152.0,0.00018371,2]
[400661530,1767774640085,-306.0151427,0.00018564,2]
[400661532,1767774640094,-838.56279606,0.0001863,2]
[400661533,1767774640103,-5000.0,0.0001863,2]
[400661535,1767774640112,-4951.45589412,0.0001869,2]
[400661536,1767774640121,-5500.0,0.00018752,2]
[400661537,1767774640130,-303.45210145,0.000189,2]
[400661538,1767774640140,-17949.00191859,0.00019,2]
[400661539,1767774640150,-2603.49,0.00019,2]
[400661540,1767774640159,-7000.62506532,0.00019,2]
[400661541,1767774640168,-1041.66666667,0.00019072,2]
[400661542,1767774640178,-1000.0,0.00019095,2]
[400661543,1767774640187,-244.0,0.00019095,2]
[400661544,1767774640200,-352.8926,0.00019178,2]
[400661545,1767774640209,-352.8926,0.00019178,2]
[400661546,1767774640218,-352.8926,0.00019178,3]
[400661547,1767774640227,-900.0,0.00019178,2]
[400661548,1767774640238,-5011.36258874,0.00019178,2]
[400661549,1767774640247,-2811.62,0.000192,2]
[400661550,1767774640257,-167.78,0.000192,2]
[400661551,1767774640267,-258.12,0.000192,2]
[400661552,1767774640278,-243.07,0.000192,2]
[400661553,1767774640287,-25963.54,0.000192,2]
[400661554,1767774640296,-497.81118302,0.00019205,5]
[400661555,1767774640305,-6000.0,0.000193,2]
[400661556,1767774640315,-178.0,0.00019315,3]
[400661557,1767774640324,-1549.57669197,0.00019726,2]
[400661558,1767774640333,-201.9,0.00019755,2]
[400661559,1767774640342,-1504.11551038,0.00019758,11]
[400661560,1767774640352,-6500.0,0.00019848,2]
[400661561,1767774640361,-210.20532748,0.0002,2]
[400661562,1767774640370,-1972.0,0.0002,2]
[400661563,1767774640380,-632.73035631,0.0002,2]
[400661564,1767774640389,-14686.18217338,0.0002,2]
[400661565,1767774640398,-300.05779371,0.0002,7]
[400661566,1767774640407,-371.23034443,0.0002,2]
[400661567,1767774640416,-599.02649061,0.0002,2]
[400661568,1767774640425,-696.84890501,0.0002,2]
[400661569,1767774640436,-23000.0,0.0002,2]
[400661570,1767774640445,-202.52017028,0.0002,2]
[400661571,1767774640453,-503.77278596,0.0002,2]
[400661572,1767774640463,-159.84863644,0.0002,2]
[400661573,1767774640471,-181.25348447,0.0002,2]
[400661574,1767774640480,-459.50208546,0.0002013,2]
[400661575,1767774640490,-1613.0,0.00020153,2]
[400661576,1767774640499,-2002.67735813,0.00020396,2]
[400661577,1767774640508,-341.78314639,0.00020564,2]
[400661578,1767774640518,-1387.87898167,0.0002061,2]